bitfinex-derivatives/quotes_SOLF0:USTF0_20260107
["timestamp","ask_amount","ask_price","bid_price","bid_amount"]
[1767758726706,92.76006628,139.81,139.74,6.4446]
[1767758726908,92.76006628,139.81,139.74,6.77616578]
[1767758729206,86.31866628,139.81,139.74,6.77616578]
[1767758730007,86.31866628,139.81,139.75,6.77576578]
[1767758730305,86.31866628,139.81,139.75,0.33156578]
[1767758730903,92.76016628,139.81,139.75,0.33156578]
[1767758731098,1.71866628,139.77,139.7,9.2746355]
[1767758731413,1.71866628,139.77,139.7,0.33156578]
[1767758731909,1.71866628,139.77,139.71,6.4457]
[1767758732405,6.4424,139.79,139.72,6.74709027]
[1767758732603,8.16106628,139.79,139.72,6.74709027]
[1767758733814,6.4429,139.78,139.72,6.74709027]
[1767758734008,1.71866628,139.77,139.69,8.94306972]
[1767758734217,1.71866628,139.77,139.7,0.30159027]
[1767758734513,8.16196628,139.77,139.7,6.74809027]
[1767758736219,8.16146628,139.79,139.72,0.30159027]
[1767758736813,1.71866628,139.77,139.7,0.30159027]
[1767758737406,1.71866628,139.77,139.7,6.74769027]
[1767758737407,8.16206628,139.77,139.7,6.74769027]
[1767758746527,6.4434,139.77,139.7,6.74769027]
[1767758747521,9.12945442,139.76,139.7,6.4461]
[1767758750121,9.12945442,139.76,139.7,6.74769027]
[1767758752223,6.4442,139.75,139.7,0.30159027]
[1767758752729,6.4442,139.75,139.69,6.447]
[1767758753026,6.4447,139.74,139.68,6.74899027]
[1767758753323,2.68575442,139.76,139.68,6.74899027]
[1767758753828,6.4443,139.75,139.68,6.74899027]
[1767758754227,6.4443,139.75,139.69,6.4469]
[1767758755422,2.68575442,139.76,139.7,6.74799027]
[1767758756027,6.4436,139.77,139.7,6.74799027]
[1767758758532,6.4436,139.77,139.71,6.446]
[1767758759127,9.12865442,139.78,139.71,6.75079794]
[1767758759332,6.4429,139.78,139.71,6.75079794]
[1767758760427,6.4424,139.79,139.73,0.30479794]
[1767758761328,91.0419,139.8,139.73,6.74989794]
[1767758761644,84.6,139.83,139.73,0.30479794]
[1767758761933,84.6,139.83,139.74,0.32777669]
[1767758762137,6.441,139.82,139.75,6.4442]
[1767758762320,6.441,139.82,139.75,0.32777669]
[1767758763036,6.441,139.82,139.73,0.32777669]
[1767758763037,2.68575442,139.82,139.73,0.32777669]
[1767758764540,6.442,139.8,139.73,6.77287669]
[1767758765227,6.442,139.8,139.74,0.32777669]
[1767758768452,9.12715442,139.82,139.74,6.77237669]
[1767758768750,2.68575442,139.82,139.74,6.77237669]
[1767758769550,6.4415,139.81,139.74,6.77237669]
[1767758770851,6.4415,139.81,139.75,0.32777669]
[1767758771446,6.4408,139.83,139.75,6.77177669]
[1767758771753,2.68575442,139.82,139.73,9.27084641]
[1767758771957,2.68575442,139.82,139.73,0.32777669]
[1767758772652,6.442,139.8,139.73,6.77267669]
[1767758773045,2.68575442,139.8,139.71,9.27084641]
[1767758773249,2.68575442,139.8,139.71,0.32777669]
[1767758774655,6.4429,139.78,139.71,6.77337669]
[1767758775556,6.4429,139.78,139.72,0.32777669]
[1767758777251,6.4424,139.79,139.72,6.77317669]
[1767758778158,87.28575442,139.8,139.7,8.94306972]
[1767758778159,84.6,139.8,139.74,0.32777669]
[1767758779754,91.0421,139.8,139.74,0.32777669]
[1767758782263,91.0421,139.8,139.74,6.77227669]
[1767758783261,6.4425,139.79,139.72,6.77297669]
[1767758786164,6.4429,139.78,139.72,6.77297669]
[1767758788165,6.4424,139.79,139.73,6.77267669]
[1767758788558,84.6,139.8,139.73,6.77267669]
[1767758788767,91.0419,139.8,139.74,6.77237669]
[1767758789258,84.6,139.8,139.74,6.77237669]
[1767758791767,84.6,139.8,139.74,6.4446]
[1767758791964,87.28575442,139.8,139.72,6.75576105]
[1767758792367,87.28575442,139.8,139.72,0.31056105]
[1767758792764,6.4424,139.79,139.72,6.75606105]
[1767758793454,6.4428,139.78,139.72,0.31056105]
[1767758794963,2.68575442,139.78,139.69,6.4465]
[1767758795167,2.68575442,139.78,139.69,6.75706105]
[1767758795358,2.68575442,139.78,139.69,0.31056105]
[1767758796570,6.4438,139.76,139.7,6.4464]
[1767758797763,2.68575442,139.78,139.7,6.4464]
[1767758797960,6.4433,139.77,139.7,6.4464]
[1767758799470,6.4433,139.77,139.7,6.75696105]
[1767758800667,6.4433,139.77,139.71,0.31056105]
[1767758804579,6.4429,139.78,139.71,6.75646105]
[1767758804878,2.68575442,139.78,139.7,0.31056105]
[1767758806570,1.71889736,139.76,139.7,6.75706105]
[1767758807682,1.71889736,139.76,139.71,0.31056105]
[1767758808984,84.6,139.8,139.71,0.31056105]
[1767758808985,8.16169736,139.78,139.71,6.75646105]
[1767758809283,1.71889736,139.78,139.71,0.31056105]
[1767758810082,84.6,139.8,139.71,0.31056105]
[1767758810284,1.71889736,139.78,139.71,0.31056105]
[1767758810683,1.71889736,139.78,139.72,6.4455]
[1767758810884,1.71889736,139.78,139.72,6.75606105]
[1767758811285,84.6,139.8,139.73,6.75556105]
[1767758811487,1.71889736,139.78,139.73,6.75556105]
[1767758813090,1.71889736,139.78,139.73,0.31056105]
[1767758814593,1.71889736,139.78,139.71,9.25363077]
[1767758814787,1.71889736,139.76,139.7,15.38916972]
[1767758815193,1.71889736,139.76,139.7,15.69973077]
[1767758819600,1.71889736,139.76,139.71,0.31056105]
[1767758820798,8.16269736,139.76,139.7,15.38916972]
[1767758821002,8.16269736,139.76,139.7,8.94306972]
[1767758821704,8.16269736,139.76,139.7,9.27420555]
[1767758822203,1.71889736,139.76,139.7,9.27420555]
[1767758823603,1.71889736,139.76,139.7,15.72050555]
[1767758824900,1.71889736,139.76,139.71,6.446]
[1767758826105,1.71889736,139.76,139.7,9.27420555]
[1767758826304,1.71889736,139.74,139.69,8.94306972]
[1767758826603,1.71889736,139.74,139.69,9.27420555]
[1767758826993,1.71889736,139.74,139.69,8.94306972]
[1767758827194,1.71889736,139.74,139.67,9.27420555]
[1767758827806,1.71889736,139.74,139.68,6.4474]
[1767758828195,1.71889736,139.7,139.66,8.94306972]
[1767758828401,1.71889736,139.68,139.63,9.27420555]
[1767758829311,1.71889736,139.68,139.63,0.33113583]
[1767758833510,1.71889736,139.68,139.63,6.78083583]
[1767758833710,1.71889736,139.7,139.63,6.78083583]
[1767758836207,86.31889736,139.71,139.64,0.33113583]
[1767758837401,84.6,139.71,139.66,6.77943583]
[1767758837612,84.6,139.71,139.66,0.33113583]
[1767758838614,1.71889736,139.72,139.67,6.4478]
[1767758839815,1.71889736,139.7,139.65,6.4488]
[1767758841510,1.71889736,139.72,139.66,6.77933583]
[1767758844105,91.0851,139.73,139.66,6.77933583]
[1767758844306,1.71889736,139.72,139.66,6.77933583]
[1767758845815,84.64,139.73,139.67,0.33113583]
[1767758846005,1.71889736,139.72,139.66,6.4482]
[1767758846508,1.71889736,139.72,139.65,0.33113583]
[1767758846917,1.71889736,139.7,139.65,0.33113583]
[1767758848511,1.71889736,139.71,139.66,0.33113583]
[1767758849822,1.71889736,139.71,139.65,6.4487]
[1767758850117,1.71889736,139.71,139.65,6.77983583]
[1767758850518,1.71889736,139.71,139.66,6.77943583]
[1767758851513,8.16699736,139.67,139.59,6.77113968]
[1767758851719,1.71889736,139.65,139.59,6.77113968]
[1767758851920,6.4481,139.67,139.6,0.31953968]
[1767758852216,1.71889736,139.66,139.6,0.31953968]
[1767758853121,8.16729736,139.66,139.6,0.31953968]
[1767758854527,1.71889736,139.64,139.58,0.31953968]
[1767758855416,8.16769736,139.66,139.59,0.31953968]
[1767758855924,6.4489,139.65,139.59,0.31953968]
[1767758856923,8.16819736,139.64,139.57,6.77183968]
[1767758863433,1.71889736,139.64,139.57,6.77183968]
[1767758865931,1.71889736,139.64,139.57,0.31953968]
[1767758866132,184.9387,139.68,139.54,0.31953968]
[1767758866133,1.71889736,139.62,139.54,0.31953968]
[1767758866331,1.71889736,139.6,139.54,0.31953968]
[1767758866731,8.17009736,139.6,139.54,6.77323968]
[1767758867029,1.71889736,139.6,139.54,6.77323968]
[1767758868529,6.4507,139.61,139.54,6.77323968]
[1767758869236,6.4507,139.61,139.54,0.31953968]
[1767758869626,6.4512,139.6,139.53,6.4544]
[1767758869831,6.4512,139.6,139.52,0.31953968]
[1767758870528,6.4512,139.6,139.53,0.31953968]
[1767758872038,6.4516,139.59,139.53,0.31953968]
[1767758875235,6.451,139.61,139.53,0.31953968]
[1767758875538,100.3187,139.65,139.54,0.31953968]
[1767758875738,87.37191561,139.64,139.54,0.31953968]
[1767758876643,6.4502,139.62,139.55,6.4534]
[1767758878438,93.82141561,139.64,139.56,6.4528]
[1767758880841,9.14071561,139.66,139.57,0.31953968]
[1767758881040,84.7,139.65,139.57,0.31953968]
[1767758881428,6.4493,139.64,139.57,0.31953968]
[1767758884344,6.4498,139.63,139.57,0.31953968]
[1767758891654,6.4502,139.62,139.54,0.30303275]
[1767758891847,6.4502,139.62,139.54,6.75653275]
[1767758892553,6.4502,139.62,139.55,0.30303275]
[1767758894062,6.4507,139.61,139.55,0.30303275]
[1767758896159,87.39191561,139.6,139.52,9.24610247]
[1767758896462,87.39191561,139.6,139.52,0.30303275]
[1767758897351,93.84331561,139.6,139.52,6.75783275]
[1767758897758,87.39191561,139.6,139.52,6.75783275]
[1767758898662,6.4516,139.59,139.52,6.75783275]
[1767758901064,6.4516,139.59,139.53,6.4543]
[1767758903164,6.4516,139.59,139.52,6.75773275]
[1767758903370,6.4516,139.59,139.52,6.4547]
[1767758903663,2.69191561,139.58,139.5,0.30303275]
[1767758903967,2.69191561,139.58,139.5,6.4553]
[1767758904163,6.4525,139.57,139.5,6.4553]
[1767758904970,2.69191561,139.58,139.49,6.4561]
[1767758905472,2.69191561,139.58,139.48,0.30303275]
[1767758906676,6.453,139.56,139.48,0.30303275]
[1767758907176,2.69191561,139.58,139.48,0.30303275]
[1767758908574,6.4534,139.55,139.48,0.30303275]
[1767758908770,91.1734,139.55,139.48,0.30303275]
[1767758909771,91.1734,139.55,139.46,15.70360247]
[1767758909772,6.454,139.54,139.46,15.70360247]
[1767758909972,6.454,139.54,139.46,6.76053275]
[1767758910174,6.454,139.54,139.47,0.30303275]
[1767758911176,6.4544,139.53,139.47,0.30303275]
[1767758914079,6.4549,139.52,139.47,0.30303275]
[1767758916181,6.4553,139.51,139.45,0.3251568]
[1767758916979,103.10151561,139.52,139.43,9.26822652]
[1767758917178,103.10151561,139.52,139.43,0.3251568]
[1767758917377,2.69191561,139.52,139.43,0.3251568]
[1767758918684,6.4553,139.51,139.43,6.7841568]
[1767758918983,84.74,139.5,139.43,6.7841568]
[1767758919285,84.74,139.5,139.44,6.4584]
[1767758922376,84.74,139.5,139.43,0.3251568]
[1767758923075,84.74,139.5,139.42,14.43564062]
[1767758923282,87.43191561,139.5,139.42,14.43564062]
[1767758924783,6.4572,139.47,139.42,14.43564062]
[1767758928487,8.18322779,139.47,139.42,14.43564062]
[1767758928689,6.4577,139.46,139.42,14.43564062]
[1767758928890,1.72602779,139.47,139.42,3.63424062]
[1767758929184,1.72602779,139.47,139.39,0.3251568]
[1767758929390,86.48602779,139.47,139.39,0.3251568]
[1767758930586,6.4581,139.45,139.39,0.3251568]
[1767758931283,91.2176,139.47,139.4,0.3251568]
[1767758932084,6.4576,139.46,139.4,0.3251568]
[1767758933001,6.4576,139.46,139.41,0.3251568]
[1767758935103,100.4026,139.53,139.43,0.3251568]
[1767758935406,84.78,139.52,139.44,2.05118459]
[1767758935594,84.78,139.52,139.44,0.3251568]
[1767758936607,6.4557,139.5,139.44,0.3251568]
[1767758937605,1.72602779,139.51,139.41,0.3251568]
[1767758937999,102.14662779,139.51,139.42,0.3251568]
[1767758938510,1.72602779,139.51,139.42,0.3251568]
[1767758939306,8.18142779,139.51,139.43,0.32245205]
[1767758940408,8.18142779,139.51,139.43,6.78145205]
[1767758941206,91.2349,139.52,139.45,0.32245205]
[1767758942003,6.4549,139.52,139.45,0.32245205]
[1767758942205,91.2349,139.52,139.45,0.32245205]
[1767758942401,1.72602779,139.51,139.45,0.32245205]
[1767758943205,1.72602779,139.51,139.45,6.78045205]
[1767758943811,1.72602779,139.46,139.39,0.31827624]
[1767758944115,1.72602779,139.45,139.39,0.31827624]
[1767758944704,1.72602779,139.45,139.39,6.77877624]
[1767758945020,84.78,139.46,139.37,100.5131]
[1767758945021,1.72602779,139.43,139.37,0.31827624]
[1767758946614,1.72602779,139.43,139.38,6.4612]
[1767758947720,6.4583,139.45,139.38,6.4612]
[1767758947920,1.72602779,139.43,139.38,6.4612]
[1767758948217,1.72602779,139.43,139.39,6.4608]
[1767758949219,1.72602779,139.43,139.37,6.77967624]
[1767758950817,1.72602779,139.43,139.38,6.4613]
[1767758952221,1.72602779,139.43,139.37,0.31827624]
[1767758952722,1.72602779,139.43,139.38,0.31827624]
[1767758956822,1.72602779,139.45,139.38,6.77937624]
[1767758957026,1.72602779,139.45,139.38,0.31827624]
[1767758957428,1.72602779,139.45,139.39,6.4608]
[1767758957625,1.72602779,139.45,139.39,6.77907624]
[1767758959333,8.18412779,139.45,139.39,0.31827624]
[1767758961132,84.78,139.46,139.4,0.31827624]
[1767758961331,86.50602779,139.46,139.4,0.31827624]
[1767758961627,1.72602779,139.46,139.4,0.31827624]
[1767758961834,100.4266,139.5,139.4,9.26134596]
[1767758961835,1.72602779,139.48,139.4,9.26134596]
[1767758962032,1.72602779,139.46,139.4,0.31827624]
[1767758963622,8.18392779,139.46,139.4,0.31827624]
[1767758966035,8.18392779,139.46,139.4,6.77867624]
[1767758970525,8.18392779,139.46,139.41,0.31827624]
[1767758970526,1.72602779,139.46,139.41,0.31827624]
[1767758970928,1.72602779,139.46,139.39,9.26134596]
[1767758971131,1.72602779,139.46,139.39,0.31827624]
[1767758971934,1.72602779,139.46,139.39,9.26134596]
[1767758972732,6.4581,139.45,139.39,15.72214596]
[1767758973436,8.18362779,139.46,139.39,15.72214596]
[1767758975434,6.4582,139.45,139.39,15.72214596]
[1767758976335,6.4582,139.45,139.39,9.26134596]
[1767758976933,1.72602779,139.46,139.38,8.94306972]
[1767758977137,1.72602779,139.44,139.38,8.94306972]
[1767758978136,1.72602779,139.44,139.37,9.2686015]
[1767758978329,1.72602779,139.42,139.37,8.94306972]
[1767758978529,1.72602779,139.42,139.35,13.67801085]
[1767758978530,8.18552779,139.42,139.36,9.2686015]
[1767758984534,8.18552779,139.42,139.36,15.7307015]
[1767758985639,6.4595,139.42,139.36,15.7307015]
[1767758985834,1.72602779,139.43,139.37,6.78713178]
[1767758986337,1.72602779,139.43,139.37,15.7302015]
[1767758987645,8.18502779,139.43,139.37,15.7302015]
[1767758989644,1.72602779,139.43,139.38,6.78297975]
[1767758989845,84.78,139.44,139.38,6.78297975]
[1767758990041,84.78,139.44,139.39,0.32167975]
[1767758990546,6.4585,139.45,139.39,0.32167975]
[1767758990747,6.4585,139.45,139.39,6.78247975]
[1767758991043,6.4585,139.45,139.4,0.32167975]
[1767758992134,6.4585,139.45,139.4,9.26474947]
[1767758998750,6.4585,139.45,139.41,0.32167975]
[1767759002342,2.69728113,139.5,139.41,0.32167975]
[1767759002543,187.92588113,139.5,139.41,8.94306972]
[1767759002849,2.69728113,139.48,139.4,9.26361772]
[1767759003050,6.4577,139.46,139.4,9.26361772]
[1767759003353,2.69728113,139.48,139.4,9.26361772]
[1767759003555,2.69728113,139.46,139.4,9.26361772]
[1767759004654,6.4582,139.45,139.4,9.26361772]
[1767759005158,2.69728113,139.46,139.39,8.94306972]
[1767759005357,6.4587,139.44,139.39,8.94306972]
[1767759007364,9.15518113,139.46,139.39,8.94306972]
[1767759008765,9.15518113,139.46,139.38,15.72212498]
[1767759009767,6.4581,139.45,139.38,15.72212498]
[1767759010068,2.69728113,139.44,139.38,9.26082498]
[1767759011566,9.15578113,139.44,139.38,9.26082498]
[1767759011759,2.69728113,139.44,139.38,8.94306972]
[1767759011962,2.69728113,139.44,139.37,8.94306972]
[1767759012370,6.4596,139.42,139.37,8.94306972]
[1767759012669,2.69728113,139.44,139.37,8.94306972]
[1767759013367,6.459,139.43,139.37,8.94306972]
[1767759016972,6.459,139.43,139.37,9.26082498]
[1767759017674,6.459,139.43,139.38,0.31775526]
[1767759021273,84.8,139.44,139.38,0.31775526]
[1767759022771,84.8,139.44,139.38,6.77905526]
[1767759023273,91.2586,139.44,139.38,0.31775526]
[1767759025274,84.8,139.44,139.38,0.31775526]
[1767759027270,84.8,139.44,139.38,6.77895526]
[1767759028274,87.49728113,139.44,139.36,0.31775526]
[1767759029680,6.459,139.43,139.36,6.77995526]
[1767759031279,93.95578113,139.44,139.37,6.4618]
[1767759031478,93.95578113,139.44,139.37,6.77989131]
[1767759033676,93.95578113,139.44,139.38,6.4613]
[1767759035375,93.95578113,139.44,139.37,0.31809131]
[1767759036986,87.49728113,139.44,139.37,0.31809131]
[1767759037480,93.95588113,139.44,139.37,6.77979131]
[1767759038281,93.95588113,139.44,139.37,15.72286103]
[1767759039883,91.2586,139.44,139.38,6.77929131]
[1767759040190,84.8,139.44,139.39,0.31809131]
[1767759041588,91.2585,139.44,139.39,0.31809131]
[1767759046793,91.2585,139.44,139.39,9.26116103]
[1767759046794,84.8,139.44,139.39,9.26116103]
[1767759047093,6.4581,139.45,139.4,0.31809131]
[1767759047293,6.4575,139.47,139.41,0.31809131]
[1767759047589,84.8,139.47,139.41,0.31809131]
[1767759048193,6.4576,139.46,139.41,9.26116103]
[1767759052396,92.9830676,139.47,139.41,9.26116103]
[1767759053197,92.9830676,139.47,139.41,0.31809131]
[1767759053403,86.5258676,139.47,139.41,0.31809131]
[1767759054106,86.5258676,139.47,139.43,0.31809131]
[1767759054402,1.7258676,139.47,139.43,0.31809131]
[1767759054604,1.7258676,139.49,139.43,0.31809131]
[1767759055396,1.7258676,139.49,139.43,6.77699131]
[1767759058907,1.7258676,139.49,139.44,6.4585]
[1767759059305,86.5258676,139.5,139.44,0.31809131]
[1767759059506,86.5258676,139.5,139.45,6.77609131]
[1767759062312,86.5258676,139.5,139.45,0.31809131]
[1767759064811,86.5258676,139.5,139.43,6.7737275]
[1767759066320,92.9816676,139.5,139.43,6.7737275]
[1767759069722,92.9816676,139.5,139.44,6.4585]
[1767759070623,92.9816676,139.5,139.45,0.32843256]
[1767759072420,6.4562,139.49,139.43,0.32843256]
[1767759073326,86.5258676,139.5,139.43,6.78743256]
[1767759075320,86.5258676,139.5,139.44,6.4584]
[1767759075937,1.7258676,139.46,139.41,8.94306972]
[1767759076232,1.7258676,139.46,139.4,9.27150228]
[1767759077237,1.7258676,139.46,139.42,6.4594]
[1767759078141,1.7258676,139.49,139.44,6.4585]
[1767759083347,1.7258676,139.49,139.43,0.32843256]
[1767759083843,1.7258676,139.49,139.43,6.78733256]
[1767759085846,1.7258676,139.49,139.44,0.32843256]
[1767759089150,8.1823676,139.49,139.44,0.32843256]
[1767759089647,8.1823676,139.49,139.43,8.94306972]
[1767759092135,1.7258676,139.47,139.43,8.94306972]
[1767759093853,1.7258676,139.47,139.43,15.40206972]
[1767759094148,1.7258676,139.47,139.43,6.459]
[1767759100648,1.7258676,139.45,139.4,8.95848326]
[1767759101650,1.7258676,139.45,139.41,6.4599]
[1767759104148,1.7258676,139.45,139.39,6.76834726]
[1767759105051,1.7258676,139.43,139.39,6.76834726]
[1767759106859,1.7258676,139.43,139.37,13.66042633]
[1767759107361,1.7258676,139.43,139.37,0.30794726]
[1767759108658,1.7258676,139.43,139.38,6.4612]
[1767759110361,1.7258676,139.41,139.36,0.30794726]
[1767759111256,1.7258676,139.41,139.36,6.76994726]
[1767759112658,9.15784905,139.43,139.36,6.76994726]
[1767759115165,9.15724905,139.45,139.37,0.30794726]
[1767759116559,9.15724905,139.45,139.38,6.4613]
[1767759118766,6.4585,139.44,139.38,6.4613]
[1767759120464,2.69884905,139.45,139.39,0.30396162]
[1767759120659,87.45884905,139.47,139.39,0.30396162]
[1767759120865,87.45884905,139.47,139.4,0.30396162]
[1767759121560,6.4581,139.45,139.4,0.30396162]
[1767759131971,6.4587,139.44,139.38,6.78065425]
[1767759132476,6.4587,139.44,139.39,0.31935425]
[1767759136578,2.69884905,139.41,139.32,9.24632015]
[1767759136783,2.69884905,139.41,139.32,0.31935425]
[1767759137676,6.461,139.39,139.32,6.78345425]
[1767759138680,9.15914905,139.41,139.33,6.78295425]
[1767759139289,6.4605,139.4,139.33,6.78295425]
[1767759149287,6.4605,139.4,139.33,0.31935425]
[1767759150282,9.15874905,139.41,139.33,0.31935425]
[1767759151589,9.15874905,139.41,139.33,6.78295425]
[1767759152074,6.4604,139.4,139.33,6.78295425]
[1767759152876,6.4604,139.4,139.34,0.32784459]
[1767759155692,6.4609,139.39,139.34,0.32784459]
[1767759155896,2.69884905,139.41,139.32,9.25481049]
[1767759156094,2.69884905,139.41,139.32,0.32784459]
[1767759156295,6.4618,139.37,139.32,0.32784459]
[1767759160393,6.4623,139.36,139.31,8.9269659]
[1767759160893,6.4623,139.36,139.31,9.25481049]
[1767759161807,6.4616,139.38,139.31,9.25481049]
[1767759161998,100.4982,139.4,139.31,0.32784459]
[1767759162389,103.19704905,139.4,139.31,0.32784459]
[1767759163603,6.462,139.37,139.31,0.32784459]
[1767759163904,2.69884905,139.4,139.31,0.32784459]
[1767759164407,6.4613,139.38,139.31,0.32784459]
[1767759164909,6.4613,139.38,139.32,0.32784459]
[1767759167012,6.4618,139.37,139.32,0.32784459]
[1767759167300,6.4618,139.37,139.31,6.4645]
[1767759167504,6.4618,139.37,139.31,6.79234459]
[1767759168493,6.4618,139.37,139.31,15.71931049]
[1767759168802,6.4618,139.37,139.31,6.79234459]
[1767759169315,6.4618,139.37,139.31,0.32784459]
[1767759172402,6.4618,139.37,139.31,9.25481049]
[1767759173907,185.3651,139.36,139.26,0.32784459]
[1767759174203,2.69884905,139.34,139.26,0.32784459]
[1767759174602,185.3651,139.36,139.26,0.32784459]
[1767759174603,1.72924339,139.33,139.26,0.32784459]
[1767759175601,8.19284339,139.33,139.26,6.79464459]
[1767759176906,6.4641,139.32,139.27,0.32784459]
[1767759179607,6.4646,139.31,139.27,0.32784459]
[1767759181305,6.4646,139.31,139.25,0.32784459]
[1767759181612,1.72924339,139.31,139.23,0.30130401]
[1767759181810,100.5499,139.33,139.23,0.30130401]
[1767759182011,1.72924339,139.31,139.23,0.30130401]
[1767759182602,5.36049388,139.3,139.23,0.30130401]
[1767759182821,1.72924339,139.31,139.23,0.30130401]
[1767759183000,5.36049388,139.3,139.23,0.30130401]
[1767759183212,7.08973727,139.29,139.23,0.30130401]
[1767759183407,1.72924339,139.29,139.22,14.64916691]
[1767759183705,1.72924339,139.27,139.22,14.64916691]
[1767759184711,8.19574339,139.27,139.22,14.64916691]
[1767759187318,6.467,139.26,139.22,14.64916691]
[1767759189208,6.4675,139.25,139.21,0.30130401]
[1767759189417,6.4675,139.25,139.16,6.4713]
[1767759189418,1.72924339,139.23,139.16,0.31325859]
[1767759190010,6.4681,139.24,139.16,0.31325859]
[1767759190211,8.19734339,139.24,139.16,0.31325859]
[1767759190531,8.19734339,139.24,139.17,0.31325859]
[1767759190723,93.05644339,139.26,139.17,0.31325859]
[1767759190910,91.3272,139.26,139.17,0.31325859]
[1767759191129,93.05644339,139.26,139.18,0.31325859]
[1767759191309,6.4674,139.25,139.18,0.31325859]
[1767759191707,6.4668,139.27,139.19,1.72924339]
[1767759191911,6.4668,139.27,139.2,0.31325859]
[1767759192314,8.19604339,139.27,139.2,0.31325859]
[1767759194111,6.466,139.28,139.2,0.31325859]
[1767759194317,1.72924339,139.31,139.22,0.31325859]
[1767759194911,6.4655,139.29,139.22,0.31325859]
[1767759195115,1.72924339,139.29,139.22,0.31325859]
[1767759195512,1.72924339,139.3,139.22,0.31325859]
[1767759195718,6.4655,139.29,139.22,0.31325859]
[1767759196518,86.60924339,139.32,139.23,0.31325859]
[1767759197716,6.4651,139.3,139.23,0.31325859]
[1767759199013,6.4651,139.3,139.23,6.78145859]
[1767759199217,84.88,139.32,139.24,0.31325859]
[1767759199621,1.72924339,139.33,139.24,0.31325859]
[1767759199828,91.3431,139.35,139.24,0.31325859]
[1767759200019,1.72924339,139.33,139.24,0.31325859]
[1767759201022,1.72924339,139.35,139.26,0.31325859]
[1767759202128,1.72924339,139.35,139.27,0.31325859]
[1767759203015,86.60924339,139.37,139.29,0.31325859]
[1767759203326,5.37796627,139.36,139.3,0.31325859]
[1767759203526,86.60924339,139.37,139.3,0.31325859]
[1767759203915,1.72924339,139.37,139.3,0.31325859]
[1767759204826,84.88,139.39,139.31,0.31325859]
[1767759205026,86.60924339,139.39,139.31,0.31325859]
[1767759205422,86.60924339,139.39,139.32,6.77725859]
[1767759208724,86.60924339,139.39,139.33,6.4635]
[1767759210223,84.88,139.39,139.33,6.4635]
[1767759210427,84.88,139.39,139.34,6.4631]
[1767759210926,1.72924339,139.4,139.34,6.4631]
[1767759213926,1.72924339,139.41,139.34,0.32744539]
[1767759215653,1.72924339,139.41,139.36,6.462]
[1767759216063,1.72924339,139.41,139.34,0.32744539]
[1767759216349,1.72924339,139.39,139.34,6.4628]
[1767759218247,1.72924339,139.39,139.34,6.79024539]
[1767759218752,1.72924339,139.39,139.35,0.32744539]
[1767759219251,1.72924339,139.41,139.35,0.32744539]
[1767759220556,1.72924339,139.41,139.36,6.4621]
[1767759221154,1.72924339,139.41,139.35,0.32744539]
[1767759221355,1.72924339,139.39,139.33,0.32744539]
[1767759222655,1.72924339,139.39,139.34,6.4631]
[1767759223560,6.4599,139.41,139.34,6.4631]
[1767759223756,1.72924339,139.39,139.34,6.4631]
[1767759224354,1.72924339,139.39,139.35,6.4627]
[1767759229157,1.72924339,139.39,139.33,6.79074539]
[1767759230558,1.72924339,139.38,139.33,6.79074539]
[1767759233654,1.72924339,139.38,139.33,0.32744539]
[1767759234360,8.19014339,139.39,139.33,0.32744539]
[1767759235365,1.72924339,139.39,139.33,0.32744539]
[1767759236665,9.15974336,139.41,139.33,6.79104539]
[1767759236964,5.38393496,139.4,139.33,0.32744539]
[1767759237165,5.38696622,139.39,139.33,0.32744539]
[1767759237368,9.15964336,139.41,139.34,6.463]
[1767759237560,5.38696622,139.4,139.34,6.463]
[1767759237761,9.15964336,139.41,139.34,6.463]
[1767759237961,5.38693707,139.4,139.34,6.463]
[1767759238167,5.39036326,139.39,139.34,6.463]
[1767759238370,9.15964336,139.41,139.34,6.463]
[1767759238565,5.39036326,139.4,139.34,6.463]
[1767759238764,5.39036326,139.39,139.34,6.463]
[1767759238967,9.15964336,139.41,139.34,6.463]
[1767759239164,5.3903497,139.4,139.34,6.463]
[1767759239381,5.3903497,139.39,139.34,6.463]
[1767759239558,9.15964336,139.41,139.34,6.463]
[1767759239764,5.39434661,139.4,139.34,6.463]
[1767759239970,5.39434661,139.39,139.34,6.463]
[1767759240156,2.69964336,139.41,139.34,6.463]
[1767759240360,5.39703276,139.4,139.35,6.4626]
[1767759240556,5.39703276,139.39,139.35,6.4626]
[1767759240857,2.69964336,139.41,139.35,6.4626]
[1767759241059,5.39703684,139.4,139.35,6.4626]
[1767759241374,5.39703684,139.39,139.35,6.4626]
[1767759241668,2.69964336,139.41,139.35,6.4626]